bitfinex/quotes_SOLUSD_20240912
["timestamp","ask_amount","ask_price","bid_price","bid_amount"]
[1726136129690,23.902374,134.89,134.86,0.2618653]
[1726136129890,15.0627,134.9,134.86,6.16117896]
[1726136130102,15.0627,134.9,134.86,0.2618653]
[1726136130300,16.91647366,134.9,134.86,0.2618653]
[1726136130513,16.91647366,134.9,134.86,6.16117896]
[1726136130718,16.91647366,134.9,134.86,0.2618653]
[1726136131103,16.91647366,134.9,134.86,6.16117896]
[1726136131409,16.91647366,134.9,134.86,0.2618653]
[1726136131410,23.776884,134.89,134.86,0.2618653]
[1726136131799,25.6308028,134.89,134.86,0.2618653]
[1726136131996,25.63080993,134.89,134.86,0.2618653]
[1726136132533,0.12549,134.88,134.86,0.2618653]
[1726136133716,23.776884,134.89,134.86,0.2618653]
[1726136134620,1.85391854,134.88,134.86,0.2618653]
[1726136134801,23.776884,134.89,134.86,0.2618653]
[1726136135310,0.12549,134.88,134.86,0.2618653]
[1726136136401,23.776884,134.89,134.86,0.2618653]
[1726136140236,25.6308335,134.89,134.86,0.2618653]
[1726136141408,23.776884,134.89,134.86,0.2618653]
[1726136141608,21.85979,134.9,134.86,0.2618653]
[1726136141609,23.776884,134.87,134.86,0.2618653]
[1726136141828,39.386474,134.87,134.86,0.2618653]
[1726136149744,39.511964,134.87,134.86,0.2618653]
[1726136150935,41.36637529,134.87,134.86,0.2618653]
[1726136151635,39.511964,134.87,134.86,0.2618653]
[1726136152809,15.60959,134.87,134.86,0.2618653]
[1726136153043,15.4841,134.87,134.86,0.2618653]
[1726136153345,29.1832,134.93,134.86,0.2618653]
[1726136153514,7.74923544,134.91,134.86,0.2618653]
[1726136154342,24.027864,134.9,134.86,0.2618653]
[1726136156343,23.902374,134.9,134.86,0.2618653]
[1726136160841,0.12549,134.9,134.86,0.2618653]
[1726136164847,1.97926142,134.9,134.86,0.2618653]
[1726136165081,23.776884,134.89,134.86,0.2618653]
[1726136167942,23.902374,134.9,134.86,0.2618653]
[1726136170260,22.513,134.93,134.87,14.8470237]
[1726136170459,16.5081,134.93,134.87,14.8470237]
[1726136173361,16.5081,134.93,134.89,14.8470237]
[1726136173539,23.776884,134.95,134.89,14.8470237]
[1726136175076,25.62996644,134.95,134.89,14.8470237]
[1726136176745,23.776884,134.95,134.89,14.8470237]
[1726136178763,38.17069,134.96,134.91,14.8470237]
[1726136181060,25.62982827,134.95,134.86,3.4153653]
[1726136181376,25.62982827,134.95,134.89,14.8470237]
[1726136181564,22.3,134.94,134.88,14.8470237]
[1726136181757,25.63015073,134.93,134.88,14.8470237]
[1726136182269,23.776884,134.93,134.88,14.8470237]
[1726136182774,46.202374,134.94,134.88,14.8470237]
[1726136185581,48.05571591,134.94,134.88,14.8470237]
[1726136188273,46.202374,134.94,134.88,14.8470237]
[1726136189071,23.902374,134.94,134.88,14.8470237]
[1726136189266,23.776884,134.93,134.88,14.8470237]
[1726136190753,22.3,134.97,134.92,14.8470237]
[1726136191765,22.3,134.98,134.92,14.8470237]
[1726136192472,46.076884,134.97,134.92,14.8470237]
[1726136192674,44.2399,134.99,134.92,14.8470237]
[1726136193779,23.776884,134.98,134.92,14.8470237]
[1726136197076,23.776884,134.98,134.92,14.8470237]
[1726136197283,1.85268135,134.97,134.92,14.8470237]
[1726136198992,23.776884,134.98,134.92,14.8470237]
[1726136200454,25.62961246,134.98,134.92,14.8470237]
[1726136200655,0.12549,134.97,134.92,14.8470237]
[1726136200877,1.97828027,134.97,134.92,14.8470237]
[1726136201156,0.12549,134.97,134.92,14.8470237]
[1726136203572,0.12549,134.97,134.93,14.8470237]
[1726136204985,23.776884,134.98,134.93,14.8470237]
[1726136205767,15.7967,134.99,134.95,14.8470237]
[1726136207496,23.902374,134.98,134.95,14.8470237]
[1726136210483,23.902374,134.98,134.95,20.74264372]
[1726136210690,23.902374,134.98,134.95,14.8470237]
[1726136211568,23.902374,134.98,134.95,20.74264372]
[1726136211769,23.902374,134.98,134.95,14.8470237]
[1726136214292,23.902374,134.98,134.96,5.89557387]
[1726136214491,23.902374,134.98,134.95,14.8470237]
[1726136214886,23.902374,134.98,134.96,5.89554378]
[1726136215081,23.902374,134.98,134.95,14.8470237]
[1726136215274,23.902374,134.98,134.96,5.89554378]
[1726136215594,23.902374,134.98,134.95,14.8470237]
[1726136215778,23.902374,134.98,134.96,5.89554378]
[1726136215981,23.902374,134.98,134.95,14.8470237]
[1726136216188,23.902374,134.98,134.96,5.89554378]
[1726136216392,23.902374,134.98,134.95,14.8470237]
[1726136216686,23.902374,134.98,134.96,5.89554054]
[1726136216890,23.902374,134.98,134.95,14.8470237]
[1726136217199,23.902374,134.98,134.96,5.8955373]
[1726136217371,23.902374,134.98,134.95,14.8470237]
[1726136217693,23.902374,134.98,134.96,5.89553947]
[1726136217902,23.902374,134.98,134.95,14.8470237]
[1726136218075,23.902374,134.98,134.96,5.89553947]
[1726136218276,23.902374,134.98,134.95,14.8470237]
[1726136218477,23.902374,134.98,134.96,5.89553947]
[1726136218679,23.902374,134.98,134.95,14.8470237]
[1726136218895,23.902374,134.98,134.96,5.89553834]
[1726136219078,23.902374,134.98,134.95,14.8470237]
[1726136222791,15.7967,134.99,134.95,14.8470237]
[1726136227293,0.2618653,135.0,134.95,14.8470237]
[1726136228275,0.2618653,135.0,134.97,14.8470237]
[1726136231406,0.2618653,135.0,134.99,14.8470237]
[1726136236186,0.2618653,135.0,134.98,14.8470237]
[1726136245125,0.2618653,135.0,134.94,12.62194738]
[1726136245411,0.2618653,135.0,134.99,14.8470237]
[1726136255204,0.2618653,135.04,134.99,14.8470237]
[1726136255519,0.2618653,135.04,135.03,14.8470237]
[1726136273134,0.2618653,135.08,135.03,14.8470237]
[1726136273435,0.2618653,135.08,135.0,13.34309365]
[1726136273436,0.2618653,135.08,135.07,14.8470237]
[1726136274514,0.2618653,135.12,135.07,24.31547108]
[1726136274811,0.2618653,135.12,135.11,14.8470237]
[1726136274812,15.3535653,135.12,135.11,14.8470237]
[1726136278946,15.3535653,135.12,135.06,9.92344738]
[1726136279122,15.3535653,135.12,135.11,14.8470237]
[1726136279531,15.3535653,135.12,135.06,5.88972165]
[1726136279735,15.3535653,135.12,135.1,14.8470237]
[1726136282838,1.85050923,135.11,135.05,4.0654146]
[1726136283149,17.20439257,135.12,135.07,14.8470237]
[1726136285642,15.3535653,135.12,135.07,14.8470237]
[1726136285849,15.3535653,135.12,135.09,14.8470237]
[1726136289424,1.85072245,135.11,135.07,14.8470237]
[1726136290063,23.776884,135.11,135.07,14.8470237]
[1726136291650,15.3535653,135.12,135.07,14.8470237]
[1726136295179,17.20432181,135.12,135.07,14.8470237]
[1726136301029,39.50432181,135.12,135.07,14.8470237]
[1726136301229,23.902374,135.11,135.07,14.8470237]
[1726136302040,15.3535653,135.12,135.07,14.8470237]
[1726136303546,15.3535653,135.12,135.07,18.91298518]
[1726136303837,25.62772532,135.11,135.02,12.98043343]
[1726136304158,1.85096299,135.1,135.05,14.8470237]
[1726136304353,1.85096299,135.1,135.06,4.06596148]
[1726136304560,1.85096299,135.1,135.07,4.06596148]
[1726136304745,1.85096299,135.1,135.06,4.06596148]
[1726136305062,1.85096299,135.1,135.05,14.8470237]
[1726136305258,1.85096299,135.1,135.06,4.06640886]
[1726136305462,1.85096299,135.1,135.05,18.91343256]
[1726136305667,1.85096299,135.1,135.05,14.8470237]
[1726136305858,23.776884,135.09,135.03,27.82790451]
[1726136306053,23.776884,135.09,135.04,4.06640886]
[1726136306054,18.19512598,135.08,135.04,4.06640886]
[1726136306362,1.851216,135.07,135.03,14.8470237]
[1726136306666,16.3439,135.08,135.03,14.8470237]
[1726136306843,16.3439,135.08,135.04,4.06675]
[1726136307376,16.3439,135.08,135.04,4.06676239]
[1726136308048,16.3439,135.08,135.05,4.06676239]
[1726136308243,16.3439,135.08,135.04,4.06676239]
[1726136308450,16.3439,135.08,135.05,4.06676239]
[1726136308641,16.3439,135.08,135.04,4.06676239]
[1726136308842,16.3439,135.08,135.05,4.06676239]
[1726136309043,16.3439,135.08,135.04,4.06676239]
[1726136309243,16.3439,135.08,135.05,4.06676239]
[1726136309453,16.3439,135.08,135.04,4.06676239]
[1726136309634,16.3439,135.08,135.05,4.06676239]
[1726136309839,16.3439,135.08,135.04,4.06676239]
[1726136310157,16.3439,135.08,135.05,4.06662697]
[1726136310547,16.3439,135.08,135.04,4.06662697]
[1726136310761,16.3439,135.08,135.05,4.06662697]
[1726136310961,16.3439,135.08,135.05,18.91365067]
[1726136311261,16.3439,135.08,135.05,14.8470237]
[1726136311856,16.3439,135.08,135.06,4.06622211]
[1726136312547,16.3439,135.08,135.05,14.8470237]
[1726136312754,16.3439,135.08,135.06,4.0663922]
[1726136313971,16.3439,135.08,135.06,4.06621458]
[1726136314176,16.4511,135.11,135.07,14.8470237]
[1726136314351,16.4511,135.11,135.07,18.91323828]
[1726136314667,16.4511,135.11,135.07,14.8470237]
[1726136316659,16.4511,135.11,135.09,14.8470237]
[1726136318168,23.776884,135.1,135.08,14.8470237]
[1726136318373,23.902374,135.1,135.06,14.8470237]
[1726136318665,16.4511,135.11,135.06,14.8470237]
[1726136319944,16.4511,135.11,135.07,14.8470237]
[1726136320470,16.4511,135.11,135.01,3.1535]
[1726136320771,23.902374,135.1,135.05,14.8470237]
[1726136326372,25.75345327,135.1,135.05,14.8470237]
[1726136328260,23.902374,135.1,135.05,14.8470237]
[1726136335190,25.75343848,135.1,135.05,14.8470237]
[1726136335381,23.902374,135.1,135.05,14.8470237]
[1726136340174,46.202374,135.1,135.03,14.8470237]
[1726136340372,46.202374,135.1,134.98,4.70535664]
[1726136340373,1.85128591,135.09,134.98,4.70535664]
[1726136340575,15.879,135.07,135.02,14.8470237]
[1726136341186,17.73039849,135.07,135.02,14.8470237]
[1726136341681,17.73039849,135.07,135.03,5.89188119]
[1726136341876,17.73039849,135.07,135.04,5.89188119]
[1726136342087,17.73039849,135.07,135.05,5.89188119]
[1726136342269,41.50728249,135.07,135.06,5.89188119]
[1726136342469,39.655884,135.07,135.06,5.89188119]
[1726136343693,39.781374,135.07,135.06,5.89188119]
[1726136345174,23.776884,135.06,135.01,14.8470237]
[1726136345371,23.776884,135.06,135.02,5.89235334]
[1726136345577,23.776884,135.06,135.03,5.89235334]
[1726136345787,23.776884,135.06,135.04,5.89235334]
[1726136345971,23.776884,135.06,135.05,5.89235334]
[1726136346995,23.902374,135.06,135.05,5.89235334]
[1726136347906,23.902374,135.06,134.99,14.8470237]
[1726136348074,0.12549,135.05,135.0,5.8931717]
[1726136348269,0.12549,135.05,135.01,5.89307491]
[1726136348487,0.12549,135.05,134.99,14.8470237]
[1726136349295,23.776884,135.06,135.01,14.8470237]
[1726136350500,15.879,135.07,135.01,14.8470237]
[1726136350806,15.879,135.07,135.03,14.8470237]
[1726136351270,17.7303399,135.07,134.98,0.2618653]
[1726136351474,15.879,135.07,135.01,14.8470237]
[1726136351979,17.73045618,135.07,135.01,14.8470237]
[1726136353397,23.776884,135.06,135.01,14.8470237]
[1726136356294,23.776884,135.06,134.98,9.54064095]
[1726136356599,23.776884,135.06,135.0,14.8470237]
[1726136357102,23.776884,135.06,134.98,9.54064095]
[1726136357290,0.12549,135.05,134.99,14.8470237]
[1726136361882,23.776884,135.06,134.99,14.8470237]
[1726136362289,23.776884,135.06,135.01,14.8470237]
[1726136371544,25.62844218,135.06,135.0,14.8470237]
[1726136373509,46.076884,135.06,135.0,14.8470237]
[1726136373706,22.75249,135.05,135.0,14.8470237]
[1726136373900,23.776884,135.04,135.0,14.8470237]
[1726136375036,23.776884,135.04,134.98,9.54061246]
[1726136375037,23.776884,135.04,134.98,15.108889]
[1726136375409,23.776884,135.04,134.98,24.38792023]
[1726136378520,23.776884,135.04,134.98,15.108889]
[1726136378728,23.776884,135.04,134.98,24.38792391]
[1726136380229,23.776884,135.04,134.99,9.27903491]
[1726136381106,23.776884,135.04,134.98,24.38792391]
[1726136381296,23.776884,135.04,134.99,9.27903491]
[1726136382124,23.776884,135.04,134.99,9.27903307]
[1726136385715,23.776884,135.04,134.99,9.27919405]
[1726136389831,23.776884,135.04,134.98,15.108889]
[1726136390036,23.776884,135.04,134.99,9.27919405]
[1726136393049,23.776884,135.04,134.98,15.108889]
[1726136393335,23.776884,135.04,134.99,9.27919405]
[1726136394424,23.776884,135.04,135.0,9.27919405]
[1726136395835,15.9743,135.03,135.0,9.27919405]
[1726136399013,6.0029,135.02,135.0,9.27919405]
[1726136399212,6.0029,135.02,134.99,9.27919405]
[1726136401037,6.0029,135.02,134.98,0.2618653]
[1726136401218,6.0029,135.02,134.99,9.27963021]
[1726136401621,17.12524111,135.01,134.98,9.54149551]
[1726136401821,17.12524111,135.01,134.98,0.2618653]
[1726136401822,23.776884,135.0,134.98,0.2618653]
[1726136402042,1.85235002,134.99,134.98,0.2618653]
[1726136402545,23.902374,135.0,134.98,0.2618653]
[1726136406421,15.0946,135.04,134.98,15.108889]
[1726136407141,15.0946,135.04,135.0,14.8470237]
[1726136407344,15.0946,135.04,134.98,0.2618653]
[1726136407345,15.0946,135.04,135.02,14.8470237]
[1726136408857,15.0946,135.04,135.0,14.8470237]
[1726136412137,15.0946,135.04,135.02,14.8470237]
[1726136413650,15.0946,135.04,134.98,11.40983204]
[1726136413832,15.0946,135.04,135.0,14.8470237]
[1726136415565,15.0946,135.04,135.02,14.8470237]
[1726136420549,29.94233338,135.1,135.02,14.8470237]
[1726136420550,23.776884,135.08,135.02,14.8470237]
[1726136420869,21.6331,135.09,135.02,14.8470237]
[1726136421038,21.6331,135.09,135.04,14.8470237]
[1726136421937,21.6331,135.09,135.06,14.8470237]
[1726136439167,21.6331,135.09,134.99,23.776884]
[1726136439368,23.48425263,135.09,135.0,0.12549]
[1726136439576,23.48425263,135.09,135.03,14.8470237]
[1726136440079,23.776884,135.08,134.99,30.0]
[1726136440581,23.776884,135.08,135.03,14.8470237]
[1726136441489,43.9131,135.09,135.03,14.8470237]
[1726136441660,21.6331,135.09,135.03,14.8470237]
[1726136442056,21.6331,135.09,135.05,14.8470237]
[1726136445159,1.85097932,135.08,135.05,14.8470237]
[1726136445580,21.6331,135.09,135.05,14.8470237]
[1726136450418,54.45313997,135.08,134.99,30.0]
[1726136450564,46.056884,135.06,134.99,44.8470237]
[1726136450769,23.776884,135.04,134.99,14.8470237]
[1726136451086,25.62878547,135.04,134.99,14.8470237]
[1726136451395,47.90878547,135.04,134.98,0.2618653]
[1726136451688,6.67059,135.03,134.98,0.2618653]
[1726136451898,6.67059,135.03,134.98,15.108889]
[1726136457817,6.67059,135.03,134.98,0.2618653]
[1726136457818,28.8251,135.03,134.98,0.2618653]
[1726136457995,41.40065735,135.02,134.98,0.2618653]
[1726136458175,1.8521859,135.01,134.98,0.2618653]
[1726136459274,0.12549,135.0,134.98,0.2618653]
[1726136459491,23.902374,135.0,134.98,0.2618653]
[1726136459794,25.06748011,134.99,134.98,0.2618653]
[1726136460395,23.215,134.99,134.98,0.2618653]
[1726136468770,46.991884,134.99,134.98,0.2618653]
[1726136468986,47.117374,134.99,134.98,0.2618653]
[1726136469671,47.242864,134.99,134.98,0.2618653]
[1726136471596,69.522864,134.99,134.98,0.2618653]
[1726136475102,79.12653191,134.99,134.98,0.2618653]
[1726136475602,79.12653191,134.99,134.9,15.108889]
[1726136475603,46.056884,134.96,134.9,0.2618653]
[1726136475909,41.60110733,134.95,134.9,0.2618653]
[1726136478403,41.72659733,134.95,134.9,0.2618653]
[1726136478703,64.00659733,134.95,134.9,0.2618653]
[1726136479403,62.153364,134.95,134.9,0.2618653]
[1726136485208,64.0067835,134.95,134.9,0.2618653]
[1726136485386,71.75598535,134.95,134.9,0.2618653]
[1726136485585,69.90256585,134.95,134.9,0.2618653]
[1726136486487,71.75603873,134.95,134.9,0.2618653]
[1726136488586,78.42513873,134.95,134.9,0.2618653]
[1726136489104,85.01623873,134.95,134.9,0.2618653]
[1726136500701,83.51623873,134.95,134.9,0.2618653]
[1726136519918,81.66276585,134.95,134.9,0.2618653]
[1726136520114,68.40256585,134.95,134.9,0.2618653]
[1726136521141,7.74920185,134.95,134.91,14.8470237]
[1726136521340,22.28,134.97,134.91,14.8470237]
[1726136521738,24.13307973,134.97,134.91,14.8470237]
[1726136521932,22.28,134.97,134.91,14.8470237]
[1726136523042,46.182374,134.96,134.91,14.8470237]
[1726136523428,46.182374,134.96,134.9,0.2618653]
[1726136523649,46.182374,134.96,134.9,15.108889]
[1726136525717,0.12549,134.96,134.9,15.108889]
[1726136526449,22.28,134.97,134.92,14.8470237]
[1726136526742,30.02171557,134.98,134.92,14.8470237]
[1726136528048,23.776884,134.97,134.92,14.8470237]
[1726136529827,23.776884,134.97,134.91,3.1535]
[1726136529828,46.056884,134.97,134.91,3.1535]
[1726136530029,0.12549,134.96,134.91,3.1535]
[1726136530351,25.6297112,134.97,134.91,22.07121919]
[1726136531124,25.6297112,134.97,134.91,18.0005237]
[1726136531325,23.776884,134.97,134.92,14.8470237]
[1726136533026,22.28,134.96,134.92,14.8470237]
[1726136533348,23.776884,134.97,134.92,14.8470237]
[1726136534348,25.6296862,134.97,134.92,14.8470237]
[1726136534751,6.6645,135.05,134.96,14.8470237]
[1726136535235,7.73750101,135.04,134.96,14.8470237]
[1726136535745,22.28,135.03,134.96,14.8470237]
[1726136535938,23.776884,135.02,134.96,14.8470237]
[1726136536143,46.056884,135.02,134.96,14.8470237]
[1726136536865,0.12549,135.01,134.96,14.8470237]
[1726136538844,0.12549,135.01,134.98,14.8470237]
[1726136539042,23.776884,135.02,134.98,14.8470237]
[1726136539043,46.056884,135.02,134.98,14.8470237]
[1726136539252,0.12549,135.01,134.96,14.8470237]
[1726136556876,0.12549,135.01,134.92,3.1535]
[1726136557171,46.056884,135.0,134.9,0.2618653]
[1726136557373,61.951684,134.98,134.9,0.2618653]
[1726136557572,0.12549,134.97,134.92,14.8470237]
[1726136559778,0.12549,134.97,134.94,15.108889]
[1726136562288,0.12549,134.97,134.94,0.2618653]
[1726136564777,15.8948,134.98,134.94,0.2618653]
[1726136566376,15.8948,134.98,134.94,15.108889]
[1726136568290,15.8948,134.98,134.94,19.17889726]
[1726136568480,15.8948,134.98,134.94,15.108889]
[1726136568686,15.8948,134.98,134.94,19.17889726]
[1726136568884,15.8948,134.98,134.94,15.108889]
[1726136570189,1.85270683,134.97,134.94,0.2618653]
[1726136570490,2.10368683,134.97,134.94,0.2618653]
[1726136570666,22.28,134.95,134.94,0.2618653]
[1726136571005,44.93979,134.95,134.94,0.2618653]
[1726136571194,45.06528,134.95,134.94,0.2618653]
[1726136572683,46.91860565,134.95,134.94,0.2618653]
[1726136573783,45.06528,134.95,134.94,0.2618653]
[1726136573964,46.91860727,134.95,134.94,0.2618653]
[1726136574381,22.65979,134.95,134.94,0.2618653]
[1726136574562,22.5343,134.95,134.94,0.2618653]
[1726136575195,16.1204,134.95,134.94,0.2618653]
[1726136581705,17.97341839,134.95,134.94,0.2618653]
[1726136583589,18.09890839,134.95,134.94,0.2618653]
[1726136584897,40.37890839,134.95,134.94,0.2618653]
[1726136585591,40.50439839,134.95,134.94,0.2618653]
[1726136590619,38.65138,134.95,134.94,0.2618653]
[1726136593119,38.52589,134.95,134.94,0.2618653]
[1726136595110,16.24589,134.95,134.94,0.2618653]
[1726136596116,0.12549,134.95,134.94,0.2618653]
[1726136599519,21.7014,134.98,134.94,0.2618653]
[1726136599520,43.9814,134.98,134.94,0.2618653]
[1726136599718,0.12549,134.97,134.94,0.2618653]
[1726136600293,2.10381133,134.97,134.94,0.2618653]
[1726136603216,28.9491,134.95,134.94,0.2618653]
[1726136603519,30.92807398,134.95,134.94,0.2618653]
[1726136603700,31.05356398,134.95,134.94,0.2618653]
[1726136611999,29.20008,134.95,134.94,0.2618653]
[1726136615722,31.05369662,134.95,134.94,0.2618653]
[1726136616723,29.20008,134.95,134.94,0.2618653]
[1726136616943,31.05369353,134.95,134.94,0.2618653]
[1726136617305,31.05369236,134.95,134.94,0.2618653]
[1726136617611,31.05369192,134.95,134.94,0.2618653]
[1726136624326,29.20008,134.95,134.94,0.2618653]
[1726136628634,31.05368329,134.95,134.94,0.2618653]
[1726136630034,29.20008,134.95,134.94,0.2618653]
[1726136632430,31.05368033,134.95,134.94,0.2618653]
[1726136633431,30.80270033,134.95,134.94,0.2618653]
[1726136633732,28.9491,134.95,134.94,0.2618653]
[1726136634731,29.20008,134.95,134.94,0.2618653]
[1726136641137,31.0534273,134.95,134.94,0.2618653]
[1726136643622,24.1333473,134.95,134.94,0.2618653]
[1726136643940,22.28,134.95,134.94,0.2618653]
[1726136645021,22.40549,134.95,134.94,0.2618653]
[1726136645725,0.12549,134.95,134.94,0.2618653]
[1726136652818,29.20008,134.95,134.94,0.2618653]
[1726136653941,31.05348141,134.95,134.94,0.2618653]
[1726136656548,38.77443461,134.95,134.94,0.2618653]
[1726136657232,36.9210332,134.95,134.94,0.2618653]
[1726136658634,39.86151332,134.95,134.94,0.2618653]
[1726136663826,36.9210332,134.95,134.94,0.2618653]
[1726136664936,30.0009532,134.95,134.94,0.2618653]
[1726136665243,28.9479,134.98,134.94,0.2618653]
[1726136667633,0.25098,134.97,134.94,0.2618653]
[1726136675845,0.12549,134.97,134.94,0.2618653]
[1726136676460,1.97823835,134.97,134.94,0.2618653]
[1726136676762,22.28,134.96,134.94,0.2618653]
[1726136678739,1.97838702,134.95,134.94,0.2618653]
[1726136679140,0.12549,134.95,134.94,0.2618653]
[1726136679342,1.97849636,134.95,134.94,0.2618653]
[1726136681559,0.12549,134.95,134.94,0.2618653]
[1726136681948,1.9786523,134.95,134.94,0.2618653]
[1726136682260,29.20008,134.95,134.94,0.2618653]
[1726136682459,31.05342055,134.95,134.94,0.2618653]
[1726136686753,33.99561998,134.95,134.94,0.2618653]
[1726136687157,41.70202516,134.95,134.94,0.2618653]
[1726136687762,39.84868461,134.95,134.94,0.2618653]
[1726136687960,36.90648518,134.95,134.94,0.2618653]
[1726136702042,36.90648518,134.95,134.9,0.2618653]
[1726136702043,22.28,134.93,134.9,0.2618653]
[1726136702257,16.6751,134.94,134.86,0.2618653]
[1726136702258,22.28,134.89,134.86,0.2618653]
[1726136702464,30.806532,134.89,134.86,0.2618653]
[1726136702673,0.25098,134.88,134.86,0.2618653]
[1726136702854,2.10515026,134.88,134.86,0.2618653]
[1726136703370,0.25098,134.88,134.86,0.2618653]
[1726136704060,22.28,134.88,134.86,0.2618653]
[1726136704366,0.12549,134.87,134.86,0.2618653]
[1726136709457,22.28,134.9,134.86,0.2618653]
[1726136709790,0.12549,134.89,134.86,0.2618653]
[1726136712781,0.25098,134.89,134.86,0.2618653]
[1726136715863,0.12549,134.89,134.86,0.2618653]
[1726136724584,1.9794022,134.89,134.86,0.2618653]
[1726136725377,0.12549,134.89,134.86,0.2618653]
[1726136726593,1.9794023,134.89,134.86,0.2618653]
[1726136727175,0.12549,134.89,134.86,0.2618653]
[1726136728302,22.28,134.9,134.86,0.2618653]
[1726136728477,22.28,134.91,134.86,0.2618653]
[1726136729492,21.9399,134.92,134.86,0.2618653]
[1726136729493,22.28,134.89,134.86,0.2618653]
[1726136730691,0.12549,134.9,134.86,0.2618653]
[1726136730874,0.12549,134.89,134.86,0.2618653]
[1726136731699,0.12549,134.9,134.86,0.2618653]
[1726136747712,22.28,134.91,134.86,0.2618653]
[1726136755831,28.9511,134.91,134.86,0.2618653]
[1726136756113,1.97899731,134.9,134.86,0.2618653]
[1726136756320,0.12549,134.9,134.86,0.2618653]
[1726136757019,22.28,134.89,134.86,0.2618653]
[1726136760403,0.12549,134.9,134.86,0.2618653]
[1726136772513,29.07709,134.9,134.86,0.2618653]
[1726136772712,22.40549,134.9,134.86,0.2618653]
[1726136773612,0.12549,134.9,134.86,0.2618653]
[1726136784437,22.28,134.89,134.86,0.2618653]
[1726136784639,1.9795049,134.88,134.86,0.2618653]
[1726136785017,0.12549,134.88,134.86,0.2618653]
[1726136786237,22.28,134.89,134.86,0.2618653]
[1726136793040,22.43549,134.9,134.86,0.2618653]
[1726136793443,0.12549,134.9,134.86,0.2618653]
[1726136793740,22.31,134.91,134.86,0.2618653]
[1726136794734,0.12549,134.9,134.86,0.2618653]
[1726136795248,22.31,134.91,134.86,0.2618653]
[1726136797268,15.39479,134.92,134.86,0.2618653]
[1726136797429,0.12549,134.91,134.86,0.2618653]
[1726136808948,37.5793,134.92,134.86,0.2618653]
[1726136809835,37.5793,134.92,134.87,11.16728358]
[1726136811561,37.5793,134.92,134.86,0.2618653]
[1726136811742,37.5793,134.92,134.87,11.16728132]
[1726136812252,37.5793,134.92,134.87,11.16727834]
[1726136815159,30.16819997,134.93,134.87,26.01464511]
[1726136815360,22.394,134.95,134.89,14.8470237]
[1726136816240,22.31,134.94,134.89,14.8470237]
[1726136816441,22.31,134.94,134.9,4.07172225]
[1726136816640,22.31,134.94,134.91,4.07172225]
[1726136816843,7.72013565,134.96,134.89,26.01464511]
[1726136817155,6.5232,134.98,134.91,14.8470237]
[1726136817339,22.31,134.97,134.91,14.8470237]
[1726136817541,22.31,134.98,134.93,14.8470237]
[1726136818237,46.59169484,134.99,134.93,14.8470237]
[1726136818474,53.25889484,134.99,134.92,14.8470237]
[1726136819373,1.85260502,134.98,134.92,14.8470237]
[1726136819665,22.43549,134.97,134.9,3.1535]
[1726136819863,22.43549,134.97,134.91,14.8470237]
[1726136820600,22.43549,134.97,134.9,3.1535]
[1726136820865,24.16295749,134.96,134.89,14.8470237]
[1726136821064,1.97846753,134.95,134.89,14.8470237]
[1726136821768,22.31,134.94,134.88,11.16337122]
[1726136821978,24.16314329,134.94,134.88,14.8470237]
[1726136822177,22.31,134.94,134.88,14.8470237]
[1726136822686,22.31,134.94,134.89,20.0]
[1726136823571,24.16310345,134.93,134.88,14.8470237]
[1726136823764,1.85332103,134.92,134.88,14.8470237]
[1726136825081,22.31,134.93,134.88,14.8470237]
[1726136825384,22.31,134.93,134.86,0.2618653]
[1726136825563,24.28897716,134.92,134.86,0.2618653]
[1726136825883,22.43549,134.92,134.86,0.2618653]
[1726136826953,22.43549,134.92,134.86,20.2618653]
[1726136827360,0.12549,134.92,134.86,20.2618653]
[1726136827561,0.12549,134.92,134.87,14.8470237]
[1726136827865,0.12549,134.93,134.87,14.8470237]
[1726136828761,29.10559,134.93,134.86,20.2618653]
[1726136828963,30.95893678,134.93,134.86,15.108889]
[1726136829157,29.10559,134.93,134.86,15.108889]
[1726136830572,30.83408371,134.92,134.86,15.108889]
[1726136830768,0.12549,134.91,134.86,15.108889]
[1726136833066,15.57909,134.91,134.86,15.108889]
[1726136833272,37.88909,134.91,134.86,15.108889]
[1726136833595,1.85363963,134.9,134.86,0.2618653]
[1726136833768,39.74271157,134.91,134.86,0.2618653]
[1726136834479,46.41381157,134.91,134.86,0.2618653]
[1726136836267,29.10719,134.9,134.86,0.2618653]
[1726136836587,30.96141591,134.89,134.86,0.2618653]
[1726136836789,0.12549,134.88,134.86,0.2618653]
[1726136837089,29.10809,134.88,134.86,0.2618653]